fUSD/lending_fUSD_20251214
["ID","MTS","AMOUNT","RATE_DAILY","PERIOD"]
[398480034,1765721438646,-4845.192,0.00016411,2]
[398480035,1765721438655,-1136.58194033,0.00016433,2]
[398480036,1765721438665,-716.13,0.00016438,2]
[398480037,1765721438674,-500.0,0.00016438,2]
[398480038,1765721438683,-500.0,0.00016438,2]
[398480039,1765721438693,-500.0,0.00016438,2]
[398480040,1765721438702,-500.0,0.00016438,2]
[398480041,1765721438711,-500.0,0.00016438,2]
[398480042,1765721438720,-500.0,0.00016438,2]
[398480043,1765721438729,-500.0,0.00016438,2]
[398480044,1765721438739,-500.0,0.00016438,2]
[398480045,1765721438748,-500.0,0.00016438,2]
[398480046,1765721438757,-570.63280296,0.00016438,2]
[398480047,1765721438767,-500.0,0.00016438,2]
[398480048,1765721438776,-500.0,0.00016438,2]
[398480049,1765721438785,-500.0,0.00016438,2]
[398480050,1765721438795,-500.0,0.00016438,2]
[398480051,1765721438804,-500.0,0.00016438,2]
[398480052,1765721438813,-500.0,0.00016438,2]
[398480053,1765721438822,-500.0,0.00016438,2]
[398480054,1765721438831,-500.0,0.00016438,2]
[398480055,1765721438841,-500.0,0.00016438,2]
[398480056,1765721438850,-500.0,0.00016438,2]
[398480057,1765721438863,-500.0,0.00016438,2]
[398480058,1765721438873,-553.22,0.00016438,2]
[398480059,1765721438883,-150.0,0.00016438,2]
[398480060,1765721438892,-150.0,0.00016438,2]
[398480061,1765721438902,-500.0,0.00016447,2]
[398480062,1765721438911,-150.0,0.000165,2]
[398480063,1765721438921,-150.0,0.000165,2]
[398480064,1765721438930,-150.0,0.000165,2]
[398480065,1765721438940,-150.0,0.000165,2]
[398480066,1765721438950,-553.22,0.000165,2]
[398480067,1765721438964,-405.71776989,0.00016643,2]
[398480068,1765721438974,-1136.58194033,0.00016678,2]
[398480069,1765721438984,-716.13,0.00016712,2]
[398480070,1765721438994,-161.78,0.00016712,2]
[398480071,1765721439005,-299.9620005,0.00016721,2]
[398480072,1765721439017,-3831.11,0.00016747,2]
[398480073,1765721439027,-300.0,0.00016757,2]
[398480074,1765721439037,-1111.0,0.00016757,2]
[398480075,1765721439047,-220.0,0.00016757,2]
[398480076,1765721439056,-220.0,0.00016757,2]
[398480077,1765721439066,-240.72552052,0.00016757,2]
[398480078,1765721439076,-500.0,0.00016757,2]
[398480079,1765721439086,-571.83085212,0.00016757,2]
[398480080,1765721439095,-500.0,0.00016757,2]
[398480081,1765721439105,-500.0,0.00016757,2]
[398480082,1765721439114,-500.0,0.00016757,2]
[398480083,1765721439123,-500.0,0.00016757,2]
[398480084,1765721439132,-209.40437684,0.00016757,2]
[398480085,1765721439141,-500.0,0.00016757,2]
[398480086,1765721439150,-151.0,0.00016757,2]
[398480087,1765721439159,-500.0,0.00016757,2]
[398480088,1765721439168,-222.09202813,0.00016757,2]
[398480089,1765721439177,-500.0,0.00016757,2]
[398480090,1765721439186,-513.71195864,0.00016757,2]
[398480091,1765721439195,-250.0,0.00016757,2]
[398480092,1765721439205,-250.0,0.00016757,2]
[398480093,1765721439214,-250.0,0.00016757,2]
[398480094,1765721439223,-250.0,0.00016757,2]
[398480095,1765721439232,-1000.0,0.00016757,2]
[398480096,1765721439242,-160.0,0.00016757,2]
[398480097,1765721439251,-250.0,0.00016757,2]
[398480098,1765721439260,-1000.0,0.00016757,2]
[398480099,1765721439271,-1000.0,0.00016757,2]
[398480100,1765721439282,-250.0,0.00016757,2]
[398480101,1765721439291,-1000.0,0.00016757,2]
[398480102,1765721439302,-574.12855637,0.00016757,2]
[398480103,1765721439311,-250.0,0.00016757,2]
[398480104,1765721439320,-1000.0,0.00016757,2]
[398480105,1765721439329,-250.0,0.00016757,2]
[398480106,1765721439339,-1000.0,0.00016757,2]
[398480107,1765721439348,-252.63118366,0.00016757,2]
[398480108,1765721439368,-1000.0,0.00016757,2]
[398480109,1765721439377,-1000.0,0.00016757,2]
[398480110,1765721439387,-500.0,0.00016757,2]
[398480111,1765721439396,-1000.0,0.00016757,2]
[398480112,1765721439406,-500.0,0.00016757,2]
[398480113,1765721439415,-151.0,0.00016757,2]
[398480114,1765721439425,-1000.0,0.00016757,2]
[398480115,1765721439436,-151.0,0.00016757,2]
[398480116,1765721439445,-500.0,0.00016757,2]
[398480117,1765721439455,-156.587,0.00016757,2]
[398480118,1765721439464,-200.0,0.00016757,2]
[398480119,1765721439473,-1000.0,0.00016757,2]
[398480120,1765721439483,-162.380719,0.00016757,2]
[398480121,1765721439493,-207.4,0.00016757,2]
[398480122,1765721439503,-1000.0,0.00016757,2]
[398480123,1765721439513,-215.0738,0.00016757,2]
[398480124,1765721439523,-308.80660451,0.00016757,2]
[398480125,1765721439534,-1000.0,0.00016757,2]
[398480126,1765721439543,-1000.0,0.00016757,2]
[398480127,1765721439553,-1000.0,0.00016757,2]
[398480128,1765721439562,-1000.0,0.00016757,2]
[398480129,1765721439572,-1000.0,0.00016757,2]
[398480130,1765721439582,-1000.0,0.00016757,2]
[398480131,1765721439592,-1000.0,0.00016757,2]
[398480132,1765721439602,-1093.04860208,0.00016757,2]
[398480133,1765721439612,-3547.65899839,0.00016757,2]
[398480134,1765721439622,-152.76382875,0.00016757,2]
[398480135,1765721439631,-1000.0,0.00016757,2]
[398480136,1765721439641,-1000.0,0.00016757,2]
[398480137,1765721439650,-1000.0,0.00016757,2]
[398480138,1765721439660,-500.0,0.00016757,2]
[398480139,1765721439669,-1000.0,0.00016757,2]
[398480140,1765721439679,-500.0,0.00016757,2]
[398480141,1765721439688,-500.0,0.00016757,2]
[398480142,1765721439697,-519.01709768,0.00016757,2]
[398480143,1765721439707,-151.0,0.00016757,2]
[398480144,1765721439716,-578.20924308,0.00016757,2]
[398480145,1765721439726,-250.0,0.00016757,2]
[398480146,1765721439735,-250.0,0.00016757,2]
[398480147,1765721439744,-250.0,0.00016757,2]
[398480148,1765721439753,-250.0,0.00016757,2]
[398480149,1765721439762,-261.15071773,0.00016757,2]
[398480150,1765721439771,-500.0,0.00016773,2]
[398480151,1765721439781,-500.64872299,0.00016773,2]
[398480152,1765721439790,-500.48874049,0.00016773,2]
[398480153,1765721439799,-500.0,0.00016773,2]
[398480154,1765721439809,-559.91637451,0.00016773,2]
[398480155,1765721439819,-622.20369641,0.00016773,2]
[398480156,1765721439829,-500.0,0.00016773,2]
[398480157,1765721439838,-500.0,0.00016773,2]
[398480158,1765721439848,-500.0,0.00016773,2]
[398480159,1765721439857,-500.87932998,0.00016773,2]
[398480160,1765721439866,-500.0,0.00016773,2]
[398480161,1765721439876,-500.0,0.00016773,2]
[398480162,1765721439885,-500.42448479,0.00016773,2]
[398480163,1765721439894,-500.0,0.00016773,2]
[398480164,1765721439904,-500.0,0.00016773,2]
[398480165,1765721439913,-500.0,0.00016773,2]
[398480166,1765721439922,-500.0,0.00016773,2]
[398480167,1765721439932,-500.0,0.00016773,2]
[398480168,1765721439941,-500.0,0.00016773,2]
[398480169,1765721439950,-500.0,0.00016773,2]
[398480170,1765721439965,-500.0,0.00016773,2]
[398480171,1765721439974,-500.0,0.00016773,2]
[398480172,1765721439984,-201.95861982,0.00016773,2]
[398480173,1765721439993,-299.7668433,0.00016773,2]
[398480174,1765721440003,-501.65541213,0.00016773,2]
[398480175,1765721440012,-177.08742961,0.00016773,2]
[398480176,1765721440022,-1603.9996523,0.00016774,2]
[398480177,1765721440032,-209.06,0.00016786,2]
[398480178,1765721440041,-150.0,0.000168,2]
[398480179,1765721440050,-150.0,0.000168,2]
[398480180,1765721440059,-150.0,0.000168,2]
[398480181,1765721440069,-150.0,0.000168,2]
[398480182,1765721440079,-1111.0,0.00016812,2]
[398480183,1765721440089,-1111.0,0.00016867,2]
[398480184,1765721440099,-150.0,0.00016878,2]
[398480185,1765721440109,-553.22,0.00016878,2]
[398480186,1765721440119,-1136.58194033,0.00016922,2]
[398480187,1765721440129,-1111.0,0.00016922,2]
[398480188,1765721440139,-6394.5583194,0.00016932,2]
[398480189,1765721440149,-405.71776989,0.00016957,2]
[398480190,1765721440159,-500.0,0.00016973,2]
[398480191,1765721440168,-297.12189153,0.00016973,2]
[398480192,1765721440178,-500.0,0.00016973,2]
[398480193,1765721440187,-1111.0,0.00016977,2]
[398480194,1765721440197,-481.15230225,0.00016981,2]
[398480195,1765721440206,-500.0,0.00016986,2]
[398480196,1765721440215,-716.13,0.00016986,2]
[398480197,1765721440224,-1633.0,0.00017,2]
[398480198,1765721440234,-1111.0,0.00017032,2]
[398480199,1765721440244,-606.32398203,0.00017033,2]
[398480200,1765721440253,-151.0,0.00017033,2]
[398480201,1765721440262,-461.0,0.00017063,2]
[398480202,1765721440271,-461.0,0.00017076,2]
[398480203,1765721440280,-1111.0,0.00017087,2]
[398480204,1765721440296,-150.0,0.000171,2]
[398480205,1765721440305,-150.0,0.000171,2]
[398480206,1765721440314,-150.0,0.000171,2]
[398480207,1765721440324,-150.0,0.000171,2]
[398480208,1765721440333,-151.0,0.00017107,2]
[398480209,1765721440342,-1138.13818283,0.00017107,2]
[398480210,1765721440352,-1136.58194033,0.00017167,2]
[398480211,1765721440361,-151.0,0.00017167,2]
[398480212,1765721440371,-151.0,0.00017167,2]
[398480213,1765721440380,-151.0,0.00017167,2]
[398480214,1765721440390,-1363.617586,0.00017167,2]
[398480215,1765721440399,-1363.617586,0.00017167,2]
[398480216,1765721440409,-1363.617586,0.00017167,2]
[398480217,1765721440419,-1363.617586,0.00017167,2]
[398480218,1765721440428,-151.0,0.00017167,2]
[398480219,1765721440437,-151.0,0.00017167,2]
[398480220,1765721440446,-151.0,0.00017167,2]
[398480221,1765721440456,-420.0,0.00017169,2]
[398480222,1765721440465,-3451.0,0.00017179,2]
[398480223,1765721440475,-1324.0,0.00017179,2]
[398480224,1765721440484,-611.0,0.00017179,2]
[398480225,1765721440494,-1607.0,0.00017179,2]
[398480226,1765721440504,-589.0,0.00017179,2]
[398480227,1765721440513,-1261.0,0.00017179,2]
[398480228,1765721440522,-151.0,0.00017179,2]
[398480229,1765721440531,-1196.0,0.00017181,2]
[398480230,1765721440540,-911.0,0.00017181,2]
[398480231,1765721440549,-4797.0,0.00017181,2]
[398480232,1765721440558,-2426.0,0.00017181,2]
[398480233,1765721440568,-563.0,0.00017181,2]
[398480234,1765721440577,-461.0,0.0001724,2]
[398480235,1765721440587,-1680.0,0.00017256,2]
[398480236,1765721440597,-716.13,0.0001726,2]
[398480237,1765721440606,-178.21,0.0001726,2]
[398480238,1765721440615,-150.0,0.0001726,2]
[398480239,1765721440625,-150.0,0.0001726,2]
[398480240,1765721440634,-300.0,0.0001726,2]
[398480241,1765721440643,-300.0,0.0001726,2]
[398480242,1765721440652,-300.0,0.0001726,2]
[398480243,1765721440662,-150.0,0.0001726,2]
[398480244,1765721440671,-150.0,0.0001726,2]
[398480245,1765721440681,-150.0,0.0001726,2]
[398480246,1765721440690,-2463.43,0.0001726,2]
[398480247,1765721440700,-2434.54,0.0001726,2]
[398480248,1765721440709,-1217.27,0.0001726,2]
[398480249,1765721440718,-1217.27,0.0001726,2]
[398480250,1765721440728,-1217.27,0.0001726,2]
[398480251,1765721440737,-1217.27,0.0001726,2]
[398480252,1765721440747,-1217.27,0.0001726,2]
[398480253,1765721440757,-301.93,0.0001726,2]
[398480254,1765721440766,-862.84,0.0001726,2]
[398480255,1765721440776,-250.0,0.00017269,2]
[398480256,1765721440785,-405.71776989,0.00017271,2]
[398480257,1765721440795,-150.0,0.00017289,2]
[398480258,1765721440804,-150.0,0.00017289,2]
[398480259,1765721440813,-28830.2206316,0.00017292,2]
[398480260,1765721440822,-217.15233878,0.00017305,2]
[398480261,1765721440831,-595.37131296,0.00017305,2]
[398480262,1765721440841,-323.0,0.00017312,2]
[398480263,1765721440850,-150.85899699,0.00017314,2]
[398480264,1765721440859,-1000.0,0.00017321,2]
[398480265,1765721440868,-353.66007049,0.00017321,2]
[398480266,1765721440878,-461.0,0.00017343,2]
[398480267,1765721440887,-323.0,0.00017344,2]
[398480268,1765721440897,-1000.0,0.00017348,2]
[398480269,1765721440906,-1000.0,0.00017348,2]
[398480270,1765721440915,-1000.0,0.00017348,2]
[398480271,1765721440925,-764.866,0.00017348,2]
[398480272,1765721440934,-461.0,0.00017359,2]
[398480273,1765721440946,-250.0,0.00017369,2]
[398480274,1765721440958,-323.0,0.00017386,2]
[398480275,1765721440968,-150.0,0.000174,2]
[398480276,1765721440977,-150.0,0.000174,2]
[398480277,1765721440986,-150.0,0.000174,2]
[398480278,1765721440995,-150.0,0.000174,2]
[398480279,1765721441004,-1136.58194033,0.00017411,2]
[398480280,1765721441014,-1588.46157082,0.00017423,2]
[398480281,1765721441025,-859.349,0.00017483,2]
[398480282,1765721441035,-1022.0,0.000175,2]
[398480283,1765721441044,-155.76566,0.000175,2]
[398480284,1765721441054,-151.0,0.000175,2]
[398480285,1765721441063,-151.0,0.000175,2]
[398480286,1765721441072,-210.217436,0.000175,2]
[398480287,1765721441081,-151.0,0.000175,2]
[398480288,1765721441090,-1363.617586,0.000175,2]
[398480289,1765721441099,-1363.617586,0.000175,2]
[398480290,1765721441108,-1363.617586,0.000175,2]
[398480291,1765721441117,-1363.617586,0.000175,2]
[398480292,1765721441126,-151.0,0.000175,2]
[398480293,1765721441136,-277.114897,0.000175,2]
[398480294,1765721441145,-324166.83996043,0.000175,2]
[398480295,1765721441154,-323.0,0.00017523,2]
[398480296,1765721441163,-240.0,0.00017529,2]
[398480297,1765721441173,-716.13,0.00017534,2]
[398480298,1765721441182,-600.0,0.00017534,2]
[398480299,1765721441191,-405.71776989,0.00017586,2]
[398480300,1765721441201,-447.85111139,0.00017599,2]
[398480301,1765721441216,-323.0,0.00017608,2]
[398480302,1765721441226,-323.0,0.00017618,2]
[398480303,1765721441235,-1136.58194033,0.00017656,2]
[398480304,1765721441246,-1588.46157082,0.00017662,2]
[398480305,1765721441256,-500.0,0.00017671,2]
[398480306,1765721441266,-150.0,0.00017671,2]
[398480307,1765721441276,-150.0,0.00017671,2]
[398480308,1765721441285,-150.0,0.00017671,2]
[398480309,1765721441294,-150.0,0.00017671,2]
[398480310,1765721441304,-150.0,0.00017671,2]
[398480311,1765721441313,-150.0,0.00017671,2]
[398480312,1765721441323,-150.0,0.00017671,2]
[398480313,1765721441332,-150.0,0.00017671,2]
[398480314,1765721441342,-500.0,0.00017671,2]
[398480315,1765721441351,-150.0,0.000177,2]
[398480316,1765721441360,-150.0,0.000177,2]
[398480317,1765721441370,-1090.0,0.000177,2]
[398480318,1765721441380,-1333.94,0.00017782,2]
[398480319,1765721441390,-323.0,0.00017794,2]
[398480320,1765721441399,-323.0,0.00017804,2]
[398480321,1765721441408,-500.0,0.00017808,2]
[398480322,1765721441418,-150.0,0.00017808,2]
[398480323,1765721441427,-150.0,0.00017808,2]
[398480324,1765721441437,-150.0,0.00017808,2]
[398480325,1765721441447,-150.0,0.00017808,2]
[398480326,1765721441456,-535.47452051,0.00017808,2]
[398480327,1765721441466,-716.13,0.00017808,2]
[398480328,1765721441476,-150.0,0.00017808,2]
[398480329,1765721441485,-500.0,0.00017808,2]
[398480330,1765721441494,-323.0,0.00017842,2]
[398480331,1765721441504,-225.18697532,0.00017853,2]
[398480332,1765721441513,-740.539454,0.00017853,2]
[398480333,1765721441523,-500.0,0.00017857,2]
[398480334,1765721441532,-503.91344309,0.00017857,2]
[398480335,1765721441541,-1500.0,0.00017868,2]
[398480336,1765721441552,-240.0,0.00017878,2]
[398480337,1765721441561,-240.0,0.00017894,2]
[398480338,1765721441570,-1136.58194033,0.000179,2]
[398480339,1765721441580,-405.71776989,0.000179,2]
[398480340,1765721441590,-1588.46157082,0.000179,2]
[398480341,1765721441598,-500.0,0.00017945,2]
[398480342,1765721441608,-200.0,0.00017945,2]
[398480343,1765721441617,-150.0,0.00017945,2]
[398480344,1765721441627,-200.0,0.00017945,2]
[398480345,1765721441636,-150.0,0.00017945,2]
[398480346,1765721441646,-2423.34279,0.00017958,2]
[398480347,1765721441655,-500.0,0.00017973,2]
[398480348,1765721441665,-150.0,0.00017973,2]
[398480349,1765721441675,-1500.0,0.00017982,2]
[398480350,1765721441685,-1500.0,0.00017982,2]
[398480351,1765721441694,-1500.0,0.00017982,2]
[398480352,1765721441704,-1500.0,0.00017982,2]
[398480353,1765721441713,-1500.0,0.00017982,2]
[398480354,1765721441722,-909.77556024,0.0001799,2]
[398480355,1765721441732,-909.77556024,0.0001799,2]
[398480356,1765721441741,-909.77556024,0.0001799,2]
[398480357,1765721441750,-500.0,0.00017993,2]
[398480358,1765721441761,-2324.18605176,0.00017999,4]
[398480359,1765721441771,-7747.28683921,0.00017999,2]
[398480360,1765721441781,-2594.62011227,0.00017999,4]
[398480361,1765721441800,-735.85953622,0.00017999,4]
[398480362,1765721441842,-2092.62113896,0.00017999,4]
[398480363,1765721441852,-500.0,0.00017999,2]
[398480364,1765721441861,-500.0,0.00017999,2]
[398480365,1765721441870,-500.0,0.00017999,2]
[398480366,1765721441880,-500.0,0.00017999,2]
[398480367,1765721441889,-500.0,0.00017999,2]
[398480368,1765721441898,-500.0,0.00017999,2]
[398480369,1765721441908,-500.0,0.00017999,2]
[398480370,1765721441917,-500.0,0.00017999,2]
[398480371,1765721441926,-500.0,0.00017999,2]
[398480372,1765721441935,-500.0,0.00017999,2]
[398480373,1765721441944,-500.0,0.00017999,2]
[398480374,1765721441955,-500.0,0.00017999,2]
[398480375,1765721441967,-500.0,0.00017999,2]
[398480376,1765721441976,-387.34503477,0.00017999,2]
[398480377,1765721441985,-1674.41723884,0.00017999,5]
[398480378,1765721441995,-11426.50621392,0.00017999,2]
[398480379,1765721442006,-2000.0,0.00017999,2]
[398480380,1765721442015,-2000.0,0.00017999,2]
[398480381,1765721442024,-2000.0,0.00017999,2]
[398480382,1765721442037,-2000.0,0.00017999,2]
[398480383,1765721442046,-2000.0,0.00017999,2]
[398480384,1765721442055,-2000.0,0.00017999,2]
[398480385,1765721442065,-2000.0,0.00017999,2]
[398480386,1765721442074,-150.0,0.00017999,2]
[398480387,1765721442084,-151.000002,0.00017999,2]
[398480388,1765721442093,-164.97106636,0.00018,2]
[398480389,1765721442102,-154.29231247,0.00018,2]
[398480390,1765721442112,-150.0,0.00018,2]
[398480391,1765721442121,-264.60302406,0.00018,2]
[398480392,1765721442136,-150.0,0.00018,2]
[398480393,1765721442147,-150.0,0.00018,2]
[398480394,1765721442157,-205.71936407,0.00018,2]
[398480395,1765721442167,-7065.54927818,0.00018,2]
[398480399,1765721442885,-151.0,0.00015697,2]
[398480400,1765721442894,-221.24922856,0.00016235,2]
[398480401,1765721442904,-472.02077144,0.00018,2]
[398480402,1765721442915,-564.11572434,0.00018,2]
[398480403,1765721442926,-8094.95360914,0.00018,2]
[398480404,1765721442937,-13157.25553838,0.00018,2]
[398480405,1765721442950,-2260.67063397,0.00018,2]
[398480406,1765721442965,-500.0,0.00018,2]
[398480407,1765721442975,-2590.80063541,0.00018,2]
[398480408,1765721442988,-2741.27849832,0.00018,2]
[398480409,1765721443007,-9230.67358678,0.00018,2]
[398480410,1765721443018,-3167.60350434,0.00018,2]
[398480411,1765721443044,-289132.04277304,0.00018,2]
[398480417,1765721443297,-2245.19,0.0001569,2]
[398480418,1765721443306,-2245.19,0.00016747,2]
[398480419,1765721443315,-6521.0,0.00017181,2]
[398480420,1765721443324,-7909.91322237,0.00018,2]
[398480421,1765721443342,-958.66594791,0.00018,2]
[398480427,1765721446370,-3838.42668711,0.000157,2]
[398480428,1765721446379,-178.21,0.00016438,2]
[398480429,1765721446389,-553.22,0.0001726,2]
[398480430,1765721446398,-130448.88029863,0.00018,2]
[398480431,1765721446409,-954.45988669,0.00018,2]
[398480432,1765721446420,-624644.72087482,0.00018,2]
[398480433,1765721446431,-320828.61984537,0.00018,2]
[398480434,1765721446442,-499.57521776,0.00018,2]
[398480435,1765721446454,-9535.13739471,0.00018,2]
[398480436,1765721449364,8350.262099,0.000156,2]
[398480437,1765721449394,10000.01,0.000156,2]
[398480438,1765721449421,10000.01,0.000156,2]
[398480439,1765721449450,10000.01,0.000156,2]
[398480440,1765721449482,10000.01,0.000156,2]
[398480441,1765721449509,10000.01,0.000156,2]
[398480442,1765721449539,10000.01,0.000156,2]
[398480443,1765721449567,10000.01,0.000156,2]
[398480444,1765721449595,10000.01,0.000156,2]
[398480445,1765721449623,10000.01,0.000156,2]
[398480446,1765721451047,-246.90537269,0.000156,2]
[398480447,1765721453094,-300.0,0.000156,2]
[398480451,1765721455179,-170.11079776,0.000156,2]
[398480454,1765721459937,-377.63423123,0.000156,2]
[398480455,1765721460251,-5925.3701372,0.000156,2]
[398480456,1765721460274,-10000.01,0.000156,2]
[398480457,1765721460292,-10000.01,0.000156,2]
[398480458,1765721460307,-10000.01,0.000156,2]
[398480459,1765721460324,-10000.01,0.000156,2]
[398480460,1765721460342,-10000.01,0.000156,2]
[398480461,1765721460359,-10000.01,0.000156,2]
[398480462,1765721460375,-10000.01,0.000156,2]
[398480463,1765721460628,-10000.01,0.000156,2]
[398480464,1765721460751,-10000.01,0.000156,2]
[398480465,1765721460913,-10000.01,0.000156,2]
[398480466,1765721461055,-10000.01,0.000156,2]
[398480467,1765721461167,-10000.01,0.000156,2]
[398480468,1765721461517,-10000.01,0.000156,2]
[398480469,1765721461669,-10000.01,0.000156,2]
[398480470,1765721461803,-10000.01,0.000156,2]
[398480471,1765721461923,-10000.01,0.000156,2]
[398480472,1765721462091,-10000.01,0.000156,2]
[398480474,1765721462780,-301.45411047,0.000156,2]
[398480481,1765721464773,-300.0,0.000156,2]
[398480485,1765721466778,-283.01686947,0.000156,2]
[398480490,1765721468141,-235.99132035,0.000156,2]
[398480495,1765721469552,-459.6043359,0.000156,2]
[398480504,1765721471950,-532.4869348,0.000156,2]
[398480512,1765721473957,-278.80710615,0.000156,2]
[398480521,1765721477158,-300.0,0.000156,2]
[398480522,1765721479297,-165.24,0.000156,2]
[398480523,1765721479317,-10000.01,0.000156,2]
[398480524,1765721479519,-10000.01,0.000156,2]
[398480525,1765721479624,-10000.01,0.000156,2]
[398480526,1765721479761,-10000.01,0.000156,2]
[398480527,1765721479871,-10000.01,0.000156,2]
[398480528,1765721479994,-10000.01,0.000156,2]
[398480529,1765721480107,-10000.01,0.000156,2]
[398480530,1765721480240,-10000.01,0.000156,2]
[398480531,1765721480912,-10000.01,0.000156,2]
[398480532,1765721481259,-900.67512233,0.000156,2]
[398480533,1765721484658,-221.33988607,0.000156,2]
[398480534,1765721484972,5525.0,0.000155,3]
[398480535,1765721485659,-252.17539739,0.000156,2]
[398480536,1765721488214,-228.15260108,0.000156,2]
[398480537,1765721488263,-10000.01,0.000156,2]
[398480538,1765721488380,-10000.01,0.000156,2]
[398480539,1765721488503,-10000.01,0.000156,2]
[398480540,1765721488625,-10000.01,0.000156,2]
[398480541,1765721488748,-10000.01,0.000156,2]
[398480542,1765721488872,-10000.01,0.000156,2]
[398480543,1765721489037,-10000.01,0.000156,2]
[398480544,1765721489156,-10000.01,0.000156,2]
[398480545,1765721489298,-10000.01,0.000156,2]
[398480546,1765721490202,-166.77974587,0.000156,2]
[398480547,1765721491793,-200.0,0.000156,2]
[398480548,1765721491964,5118.520892,0.00015522,2]
[398480549,1765721493884,-203.41976555,0.000156,2]
[398480550,1765721496434,-300.2577062,0.000156,2]
[398480551,1765721498356,-244.71974984,0.000156,2]
[398480552,1765721500093,-200.00513668,0.000156,2]
[398480582,1765721503001,-332.81231216,0.00015599,2]
[398480595,1765721505250,-500.71047841,0.00015599,2]
[398480599,1765721509393,-164.83,0.00015599,2]
[398480609,1765721512281,-222.30820943,0.00015599,2]
[398480610,1765721512310,-9.86965451,0.000156,2]
[398480616,1765721515757,-250.0,0.000156,2]
[398480621,1765721517167,-275.90767745,0.000156,2]
[398480622,1765721519043,-10000.01,0.000156,2]
[398480623,1765721519159,-300.0,0.000156,2]
[398480624,1765721521842,-300.0,0.00015599,2]
[398480625,1765721521851,-9700.01,0.000156,2]
[398480626,1765721521872,-10000.01,0.000156,2]
[398480627,1765721521888,-10000.01,0.000156,2]
[398480628,1765721521904,-10000.01,0.000156,2]
[398480629,1765721521920,-10000.01,0.000156,2]
[398480630,1765721521935,-10000.01,0.000156,2]
[398480631,1765721521951,-10000.01,0.000156,2]
[398480632,1765721521967,-10000.01,0.000156,2]
[398480633,1765721522365,-236.85212216,0.000156,2]
[398480637,1765721523967,-162.58563528,0.000156,2]
[398480639,1765721524685,-10000.01,0.000156,2]
[398480640,1765721525339,-197.23732865,0.0001559,3]
[398480642,1765721528052,191.606743,7.945e-05,2]
[398480643,1765721531107,-169.26868773,0.0001559,3]
[398480644,1765721534047,-2.13398362,0.0001559,3]
[398480645,1765721534075,-154.22604213,0.000156,2]
[398480646,1765721538090,-610.47975063,0.000156,2]
[398480647,1765721539649,-166.66,0.000156,2]
[398480648,1765721543427,-226.11441705,0.000156,2]
[398480649,1765721547112,5525.0,0.000155,5]
[398480650,1765721549992,316.47020865,0.0001559,2]
[398480651,1765721558660,1137.43017998,0.000155,2]
[398480653,1765721575483,2267.15615043,0.000155,2]
[398480654,1765721599530,753.95346094,0.0001554,2]
[398480655,1765721599556,2246.04653906,0.0001554,2]
[398480660,1765721609618,-1200.0,0.00015598,2]
[398480663,1765721609990,5524.0,0.000155,5]
[398480665,1765721641841,300.0,0.00015598,2]
[398480684,1765721654094,1776.01,0.000155,2]
[398480685,1765721654121,10000.01,0.000155,2]